bitfinex/quotes_SOLUSD_20251025
["timestamp","ask_amount","ask_price","bid_price","bid_amount"]
[1761421583277,0.71,194.51,194.48,28.70188358]
[1761421583576,0.71,194.51,194.48,22.88]
[1761421586662,5.85114491,194.51,194.48,22.88]
[1761421587295,0.71,194.5,194.48,22.88]
[1761421587965,12.41574495,194.49,194.43,14.24148572]
[1761421588355,10.87647521,194.47,194.43,37.12148572]
[1761421588758,0.71,194.46,194.43,37.12148572]
[1761421589487,0.71,194.46,194.43,14.24148572]
[1761421590279,0.71,194.46,194.43,42.26471183]
[1761421590472,0.71,194.46,194.43,42.91471183]
[1761421591884,10.87647521,194.47,194.43,42.91471183]
[1761421592189,11.58647521,194.47,194.43,44.45398157]
[1761421592487,11.58647521,194.47,194.43,42.91471183]
[1761421593877,11.58647521,194.47,194.43,44.45398157]
[1761421595183,48.33347043,194.5,194.45,1.53926974]
[1761421595184,0.71,194.5,194.45,1.53926974]
[1761421595484,10.87647521,194.49,194.45,1.53926974]
[1761421595783,10.87647521,194.49,194.46,0.65]
[1761421595970,0.71,194.49,194.46,0.65]
[1761421597083,0.71,194.49,194.45,0.65]
[1761421598186,0.71,194.49,194.45,5.79270896]
[1761421602889,5.85168842,194.49,194.45,0.65]
[1761421604176,0.71,194.49,194.45,5.79255916]
[1761421604379,0.71,194.49,194.45,7.3318289]
[1761421604580,0.71,194.49,194.46,0.65]
[1761421605091,0.71,194.51,194.46,25.06926974]
[1761421605483,0.71,194.51,194.47,0.65]
[1761421605783,10.87647521,194.52,194.48,22.88]
[1761421605988,10.87647521,194.52,194.49,0.65]
[1761421606200,11.58647521,194.52,194.49,0.65]
[1761421606385,10.87647521,194.52,194.48,28.02184926]
[1761421606697,0.71,194.51,194.48,28.02184926]
[1761421615301,0.71,194.51,194.48,28.69184926]
[1761421615604,11.55647521,194.52,194.48,28.69184926]
[1761421616716,11.55647521,194.52,194.48,30.231119]
[1761421617605,0.68,194.51,194.48,30.231119]
[1761421619892,10.87647521,194.52,194.49,0.66]
[1761421620091,11.58647521,194.52,194.49,0.66]
[1761421620510,11.58647521,194.52,194.48,29.561119]
[1761421620711,11.58647521,194.52,194.48,30.221119]
[1761421622512,0.71,194.52,194.48,29.561119]
[1761421622812,0.71,194.52,194.49,0.66]
[1761421623808,10.87647521,194.53,194.49,0.66]
[1761421624001,10.87647521,194.53,194.49,2.19926974]
[1761421624311,11.58647521,194.53,194.49,0.66]
[1761421624908,16.72709491,194.53,194.49,0.66]
[1761421625212,0.71,194.52,194.48,28.68184926]
[1761421626602,0.71,194.52,194.49,15.43249569]
[1761421628614,0.71,194.52,194.49,16.09249569]
[1761421628811,0.71,194.52,194.49,15.43249569]
[1761421628989,0.71,194.52,194.48,30.221119]
[1761421629394,0.71,194.52,194.49,15.43249569]
[1761421629987,0.71,194.52,194.49,16.09249569]
[1761421630394,0.71,194.52,194.49,0.66]
[1761421630615,0.71,194.52,194.5,15.43249569]
[1761421632710,16.01709491,194.53,194.5,15.43249569]
[1761421632919,16.72709491,194.53,194.5,15.43249569]
[1761421634509,14.38887786,194.56,194.53,22.88]
[1761421634510,0.71000001,194.56,194.53,22.88]
[1761421634716,10.87647522,194.56,194.53,22.88]
[1761421635020,16.72627785,194.56,194.53,22.88]
[1761421635208,0.71,194.55,194.54,10.87647522]
[1761421642131,10.87647522,194.56,194.54,10.87647522]
[1761421642932,1e-08,194.56,194.55,0.7]
[1761421644127,1e-08,194.56,194.55,11.57647521]
[1761421644332,1e-08,194.56,194.55,10.87647521]
[1761421646616,0.69000001,194.56,194.55,10.87647521]
[1761421649233,1e-08,194.56,194.55,10.87647521]
[1761421657826,1e-08,194.56,194.55,42.00062111]
[1761421661939,1e-08,194.56,194.55,39.59654203]
[1761421662127,1e-08,194.56,194.55,42.00062111]
[1761421662740,1e-08,194.56,194.55,38.89654203]
[1761421664136,1e-08,194.56,194.55,41.30062111]
[1761421664334,1e-08,194.56,194.55,42.00062111]
[1761421665345,1e-08,194.56,194.55,39.59654203]
[1761421665540,1e-08,194.56,194.55,41.30062111]
[1761421666344,1e-08,194.56,194.55,42.00062111]
[1761421668435,1e-08,194.56,194.55,38.89654203]
[1761421668641,1e-08,194.56,194.55,41.30062111]
[1761421669144,1e-08,194.56,194.55,42.00062111]
[1761421669726,1e-08,194.56,194.55,39.59654203]
[1761421669921,1e-08,194.56,194.55,42.00062111]
[1761421670644,1e-08,194.56,194.55,39.59654203]
[1761421670847,1e-08,194.56,194.55,42.00062111]
[1761421672330,1e-08,194.56,194.55,38.89654203]
[1761421672537,1e-08,194.56,194.55,41.30062111]
[1761421673351,1e-08,194.56,194.55,38.89654203]
[1761421676345,1e-08,194.56,194.55,41.30062111]
[1761421679554,0.71000001,194.56,194.55,38.89654203]
[1761421684762,1e-08,194.56,194.55,38.89654203]
[1761421685264,0.68000001,194.56,194.55,38.89654203]
[1761421686959,0.68000001,194.56,194.55,41.30062111]
[1761421688151,1e-08,194.56,194.55,41.30062111]
[1761421688773,0.68000001,194.56,194.55,38.89654203]
[1761421688962,0.68000001,194.56,194.55,41.30062111]
[1761421689464,1e-08,194.56,194.55,41.30062111]
[1761421689841,0.68000001,194.56,194.55,38.89654203]
[1761421690058,0.68000001,194.56,194.55,22.88]
[1761421690360,1e-08,194.56,194.55,32.48107131]
[1761421690661,1e-08,194.56,194.55,33.16107131]
[1761421691573,1e-08,194.56,194.55,10.28107131]
[1761421692145,1e-08,194.56,194.55,7.87699223]
[1761421692353,1e-08,194.56,194.55,10.28107131]
[1761421700174,1e-08,194.56,194.55,9.60107131]
[1761421701148,1e-08,194.56,194.55,10.31107131]
[1761421702773,1e-08,194.56,194.55,9.44484444]
[1761421705778,1e-08,194.56,194.55,14.30881102]
[1761421708672,1e-08,194.56,194.55,13.59881102]
[1761421708873,1e-08,194.56,194.53,0.71]
[1761421708874,0.69000001,194.56,194.53,5.14059528]
[1761421709077,0.69000001,194.56,194.55,22.88]
[1761421709469,0.69000001,194.56,194.55,24.41785221]
[1761421709668,1e-08,194.56,194.55,24.41785221]
[1761421709876,1e-08,194.56,194.55,26.47477762]
[1761421710079,1e-08,194.56,194.55,3.59477762]
[1761421710577,1e-08,194.56,194.55,8.73484444]
[1761421710784,1e-08,194.56,194.55,9.44484444]
[1761421711189,1e-08,194.56,194.55,2.05692541]
[1761421711364,0.69000001,194.56,194.55,24.93692541]
[1761421711566,0.69000001,194.56,194.54,22.88]
[1761421711769,0.69000001,194.56,194.54,24.41785221]
[1761421711968,1e-08,194.56,194.55,24.41785221]
[1761421712382,1e-08,194.56,194.55,26.47456609]
[1761421712767,1e-08,194.56,194.55,31.61463291]
[1761421714074,0.69000001,194.56,194.55,30.0767807]
[1761421714778,1e-08,194.56,194.55,30.0767807]
[1761421715389,0.69000001,194.56,194.55,30.0767807]
[1761421718191,0.69000001,194.56,194.55,28.02006682]
[1761421718987,1e-08,194.56,194.55,28.02006682]
[1761421719191,0.69000001,194.56,194.55,28.02006682]
[1761421725280,1e-08,194.56,194.55,29.55791903]
[1761421725584,1e-08,194.56,194.55,31.61473867]
[1761421727516,1e-08,194.56,194.55,67.84473867]
[1761421731983,1e-08,194.56,194.55,66.30688646]
[1761421732212,1e-08,194.56,194.55,67.84473867]
[1761421733115,1e-08,194.56,194.55,67.13473867]
[1761421733289,1e-08,194.56,194.55,67.82473867]
[1761421734318,1e-08,194.56,194.55,67.13473867]
[1761421734609,0.70000001,194.56,194.55,67.13473867]
[1761421735814,1e-08,194.56,194.55,67.13473867]
[1761421736507,0.70000001,194.56,194.55,67.13473867]
[1761421736706,1e-08,194.56,194.55,67.13473867]
[1761421737404,0.70000001,194.56,194.55,67.13473867]
[1761421737710,1e-08,194.56,194.55,67.13473867]
[1761421738313,0.70000001,194.56,194.55,67.13473867]
[1761421738484,1e-08,194.56,194.55,44.25473867]
[1761421738691,0.70000001,194.56,194.55,44.25473867]
[1761421740817,1e-08,194.56,194.55,44.25473867]
[1761421742217,0.66000001,194.56,194.55,44.25473867]
[1761421745514,1e-08,194.56,194.55,44.25473867]
[1761421748519,1e-08,194.56,194.55,44.96473867]
[1761421748852,0.2,194.58,194.55,57.81490572]
[1761421749118,0.2,194.58,194.57,24.41785221]
[1761421749307,0.2,194.58,194.57,60.64785221]
[1761421749815,0.2,194.58,194.57,72.48031378]
[1761421750122,1e-08,194.58,194.57,72.48031378]
[1761421750919,1e-08,194.58,194.57,77.61985224]
[1761421751818,1e-08,194.58,194.57,76.08200003]
[1761421752023,1e-08,194.58,194.57,77.61985224]
[1761421755015,1e-08,194.58,194.57,75.37200003]
[1761421755223,1e-08,194.58,194.57,77.61985224]
[1761421756529,1e-08,194.58,194.57,76.90985224]
[1761421757203,1e-08,194.58,194.57,77.61985224]
[1761421758730,1e-08,194.58,194.57,76.90985224]
[1761421758908,0.66000001,194.58,194.57,76.90985224]
[1761421759805,1e-08,194.58,194.57,76.90985224]
[1761421761132,0.68000001,194.58,194.57,76.90985224]
[1761421764750,0.68000001,194.58,194.57,77.77430763]
[1761421769545,1e-08,194.58,194.57,77.77430763]
[1761421772051,0.68000001,194.58,194.57,77.77430763]
[1761421772250,1e-08,194.58,194.57,77.77430763]
[1761421773454,0.68000001,194.58,194.57,77.77430763]
[1761421774646,0.68000001,194.58,194.57,30.42184606]
[1761421787759,1e-08,194.58,194.57,30.42184606]
[1761421788662,0.68000001,194.58,194.57,30.42184606]
[1761421788863,1e-08,194.58,194.57,30.42184606]
[1761421789034,1e-08,194.58,194.57,42.25430763]
[1761421789539,0.68000001,194.58,194.57,42.25430763]
[1761421800471,0.68000001,194.58,194.57,16.97200003]
[1761421805070,0.68000001,194.58,194.57,19.37430763]
[1761421811555,11.55647522,194.58,194.46,25.71205339]
[1761421811873,2.4023076,194.55,194.5,5.14137143]
[1761421812276,0.69,194.54,194.5,5.14137143]
[1761421813074,0.69,194.54,194.49,5.14165252]
[1761421813582,2.4023076,194.52,194.48,11.83246157]
[1761421813778,2.4023076,194.51,194.46,5.14244574]
[1761421814079,2.4023076,194.51,194.46,16.01892095]
[1761421814281,0.69,194.5,194.46,16.01892095]
[1761421814456,3.0923076,194.5,194.46,5.14244574]
[1761421814772,3.0923076,194.5,194.46,12.68522531]
[1761421814773,0.69,194.5,194.46,12.68522531]
[1761421815079,0.69,194.49,194.46,12.68522531]
[1761421820581,0.69,194.49,194.48,5.1419169]
[1761421820890,0.69,194.49,194.48,7.5442245]
[1761421821087,0.69,194.49,194.48,5.1419169]
[1761421823183,0.69,194.49,194.47,5.14218131]
[1761421824087,0.68,194.52,194.48,2.4023076]
[1761421824286,0.68,194.52,194.49,2.4023076]
[1761421824687,0.68,194.52,194.49,1.53910429]
[1761421824988,10.87647521,194.56,194.51,1.53910429]
[1761421825192,0.68,194.52,194.51,5.14112384]
[1761421826291,6.67899365,194.56,194.5,5.14138817]
[1761421826479,6.67899365,194.56,194.5,6.68049246]
[1761421828195,0.68,194.55,194.5,6.68049246]
[1761421828491,0.68,194.55,194.5,5.14138817]
[1761421828683,0.68,194.55,194.49,6.68075681]
[1761421828898,0.68,194.55,194.49,17.55723202]
[1761421829579,0.68,194.55,194.5,6.68040052]
[1761421831410,10.87647521,194.5,194.42,1.53910429]
[1761421831599,1.53910429,194.46,194.39,2.21910429]
[1761421831784,1.53910429,194.44,194.4,16.02050813]
[1761421832094,0.68,194.43,194.39,5.14425153]
[1761421833695,0.68,194.43,194.39,6.68335582]
[1761421834985,0.68,194.43,194.39,5.14425153]
[1761421835187,0.68,194.43,194.39,6.68335582]
[1761421835389,0.68,194.43,194.39,7.36335582]
[1761421835884,0.68,194.44,194.4,2.21910429]
[1761421836298,0.68,194.44,194.4,17.65715909]
[1761421836698,0.68,194.44,194.4,2.21910429]
[1761421837205,0.68,194.44,194.4,5.82378955]
[1761421837886,0.68,194.44,194.4,21.26104995]
[1761421838102,0.68,194.46,194.41,2.21910429]
[1761421838296,0.68,194.46,194.42,1.53910429]
[1761421838493,0.68,194.46,194.42,16.11646607]
[1761421838700,0.68,194.46,194.42,17.65557036]
[1761421839198,0.68,194.46,194.43,5.14323921]
[1761421839994,0.68,194.46,194.42,20.57995141]
[1761421844305,0.68,194.46,194.43,0.68]
[1761421844611,0.68,194.46,194.42,21.25995141]
[1761421845105,0.68,194.46,194.42,15.43646607]
[1761421845283,1.53910429,194.45,194.41,5.14371376]
[1761421845703,7.36160841,194.46,194.41,5.14371376]
[1761421845903,0.68,194.45,194.41,5.14371376]
[1761421846388,0.68,194.45,194.42,1.53910429]
[1761421846699,0.68,194.45,194.42,17.65557036]
[1761421847524,0.68,194.45,194.42,22.79883228]
[1761421847690,0.68,194.45,194.42,20.57972799]
[1761421848008,0.68,194.45,194.42,22.11883228]
[1761421848314,0.68,194.45,194.42,20.57972799]
[1761421850293,0.68,194.45,194.42,21.25972799]
[1761421850491,0.68,194.45,194.42,20.57972799]
[1761421851911,1.53910429,194.47,194.42,21.25972799]
[1761421852114,0.72,194.5,194.45,1.53910429]
[1761421852299,0.72,194.5,194.46,1.53910429]
[1761421852512,0.72,194.5,194.46,2.21910429]
[1761421852998,0.72,194.5,194.46,0.68]
[1761421853198,0.72,194.5,194.47,5.14218131]
[1761421854308,10.87647521,194.52,194.48,0.68]
[1761421854500,47.23647521,194.52,194.48,0.68]
[1761421854718,0.72,194.51,194.48,0.68]
[1761421855318,0.72,194.51,194.48,5.8218921]
[1761421857214,10.87647521,194.52,194.48,5.8218921]
[1761421857423,47.23647521,194.52,194.48,5.8218921]
[1761421859706,36.36,194.52,194.48,5.8218921]
[1761421861936,0.69,194.51,194.48,5.8218921]
[1761421867008,23.57,194.56,194.5,1.53910429]
[1761421867214,35.62,194.55,194.51,1.53910429]
[1761421867407,36.31,194.55,194.49,0.71]
[1761421867610,0.69,194.54,194.48,7.39099639]
[1761421867810,2.22910429,194.54,194.48,7.39099639]
[1761421868228,0.69,194.53,194.48,7.39099639]
[1761421870024,0.69,194.53,194.48,5.8518921]
[1761421870218,0.69,194.53,194.48,7.39099639]
[1761421871530,0.69,194.53,194.48,5.8518921]
[1761421871733,0.69,194.53,194.48,7.39099639]
[1761421872735,0.69,194.53,194.48,6.68099639]
[1761421872942,0.69,194.53,194.49,5.85150601]
[1761421874427,0.69,194.53,194.49,7.3906103]
[1761421875643,0.69,194.53,194.49,5.85150601]
[1761421876142,10.87647521,194.54,194.5,0.71]
[1761421876349,36.31,194.53,194.5,0.71]
[1761421877815,36.31,194.53,194.5,5.85137542]
[1761421879863,0.69,194.56,194.51,0.71]
[1761421880156,35.6,194.55,194.51,2.24910429]
[1761421880519,36.29,194.55,194.52,0.7]
[1761421881936,36.29,194.55,194.52,5.84075855]
[1761421884750,36.29,194.55,194.52,8.24489102]
[1761421885941,5.82953846,194.57,194.53,0.7]
[1761421886145,36.29,194.56,194.53,0.7]
[1761421891929,0.69,194.56,194.53,0.7]
[1761421892136,36.27,194.56,194.53,0.7]
[1761421893838,1e-08,194.58,194.55,2.40413247]
[1761421894038,35.58000001,194.58,194.55,2.40413247]
[1761421894255,35.58000001,194.58,194.56,0.7]
[1761421896657,0.69,194.57,194.52,0.7]
[1761421896869,0.69,194.57,194.52,3.10413247]
[1761421897431,2.40413247,194.56,194.5,0.7]
[1761421897638,2.40413247,194.54,194.49,5.14159767]
[1761421898059,0.69,194.53,194.49,5.14159767]
[1761421898245,0.69,194.53,194.49,5.84159767]
[1761421898872,36.29,194.53,194.5,0.7]
[1761421900075,0.69,194.53,194.5,5.84128646]
[1761421900237,36.29,194.53,194.5,5.84128646]
[1761421903175,35.6,194.53,194.5,5.84128646]
[1761421903677,0.69,194.54,194.5,7.54541893]
[1761421903865,36.29,194.54,194.51,0.7]
[1761421904064,36.29,194.54,194.5,8.24541893]
[1761421906172,35.58,194.55,194.51,0.7]
[1761421906354,36.27,194.55,194.51,0.7]
[1761421906560,0.69,194.54,194.51,0.7]
[1761421907472,0.69,194.54,194.51,5.84109981]
[1761421907642,3.09413247,194.54,194.5,5.14134494]
[1761421908161,0.69,194.53,194.5,5.14134494]
[1761421908572,0.69,194.53,194.5,5.84134494]
[1761421912278,35.58,194.54,194.51,0.69]
[1761421912485,36.26,194.54,194.5,5.83134494]
[1761421912679,0.68,194.53,194.5,5.83134494]
[1761421913186,0.68,194.53,194.5,18.68548735]
[1761421916781,0.68,194.53,194.5,17.99548735]
[1761421917592,0.68,194.54,194.5,18.68548735]
[1761421918288,0.68,194.54,194.51,0.69]
[1761421919185,0.68,194.54,194.5,18.68548735]
[1761421921963,5.80953846,194.57,194.52,2.40413247]
[1761421922180,1e-08,194.58,194.54,2.40413247]
[1761421922370,1e-08,194.58,194.55,2.40413247]
[1761421922563,1e-08,194.58,194.55,3.07413247]
[1761421923588,1e-08,194.58,194.55,18.50107305]
[1761421923798,1e-08,194.58,194.55,3.07413247]
[1761421925696,1e-08,194.58,194.55,0.67]
[1761421925875,1e-08,194.58,194.56,3.07413247]
[1761421926367,1e-08,194.58,194.56,0.67]
[1761421926576,1e-08,194.58,194.56,3.07413247]
[1761421926984,0.67000001,194.58,194.55,2.40413247]
[1761421927193,0.67000001,194.58,194.55,3.07413247]
[1761421928974,1e-08,194.58,194.57,2.40413247]
[1761421929777,1e-08,194.58,194.57,3.07413247]
[1761421929991,1e-08,194.58,194.57,15.57659404]
[1761421930381,1e-08,194.58,194.57,20.7161325]
[1761421930699,1e-08,194.58,194.57,18.31200003]
[1761421932094,0.67000001,194.58,194.54,5.14028139]
[1761421932303,1e-08,194.58,194.54,8.21441386]
[1761421932593,1e-08,194.58,194.55,14.90659404]
[1761421933795,0.67000001,194.58,194.55,20.04655403]
[1761421934701,1e-08,194.58,194.55,20.04655403]
[1761421934992,0.67000001,194.58,194.55,20.04655403]
[1761421935974,1e-08,194.58,194.56,5.80960625]
[1761421936699,0.67000001,194.58,194.56,5.13960625]
[1761421937078,0.67000001,194.58,194.52,3.07413247]
[1761421937385,0.67000001,194.58,194.53,15.42852734]
[1761421937782,0.67000001,194.58,194.53,21.23893136]
[1761421942084,0.67000001,194.58,194.54,0.69]
[1761421942285,36.27000001,194.58,194.54,5.83020308]
[1761421942682,0.67000001,194.58,194.54,8.23433555]
[1761421942887,0.71,194.57,194.54,8.23433555]
[1761421943086,0.71,194.57,194.54,20.06679712]
[1761421944410,0.71000001,194.58,194.54,20.06679712]
[1761421945708,36.29000001,194.58,194.54,20.06679712]
[1761421946408,35.00518143,194.58,194.55,5.83003872]
[1761421949916,35.58,194.58,194.56,0.69]
[1761421950813,11.07647521,194.59,194.56,0.69]
[1761421951017,35.78,194.59,194.56,5.82965738]
[1761421951507,35.78,194.59,194.57,0.69]
[1761421954412,36.38,194.59,194.54,5.83008305]
[1761421954616,36.38,194.59,194.54,5.14008305]
[1761421954820,36.38,194.59,194.55,0.69]
[1761421957107,35.6,194.58,194.55,0.69]
[1761421961197,11.07647521,194.59,194.55,5.83002026]
[1761421961405,35.58,194.58,194.56,0.69]
[1761421962320,35.58,194.58,194.54,5.14033103]
[1761421962505,35.58,194.58,194.55,0.69]
[1761421966597,0.8,194.59,194.55,0.69]
[1761421966598,35.58,194.57,194.55,5.83003435]
[1761421975107,11.07647521,194.59,194.56,0.66]
[1761421975512,35.56,194.58,194.56,0.66]
[1761421980730,0.2,194.59,194.56,5.79977804]
[1761421980939,35.56,194.58,194.56,5.79977804]
[1761421981234,35.56,194.58,194.57,0.72]
[1761421987021,0.2,194.59,194.57,5.85953453]
[1761421987226,35.74,194.59,194.57,0.72]
[1761421997536,0.2,194.59,194.57,0.72]
[1761421997835,35.54,194.58,194.57,0.72]
[1761421999250,0.2,194.59,194.57,0.72]
[1761421999546,35.54,194.58,194.57,0.72]
[1761422008358,0.2,194.59,194.57,0.72]
[1761422008559,35.52,194.58,194.57,0.72]
[1761422008948,38.52352759,194.58,194.52,0.67]
[1761422009148,0.6,194.57,194.52,0.67]
[1761422009356,35.52,194.56,194.52,0.67]
[1761422009538,35.52,194.56,194.52,3.07352759]
[1761422009738,35.52,194.56,194.53,0.67]
[1761422011359,35.52,194.56,194.53,5.8104135]
[1761422011544,35.52,194.56,194.54,0.67]
[1761422013167,0.6,194.55,194.51,10.95102403]
[1761422013355,37.92352759,194.56,194.52,0.67]
[1761422013561,38.52352759,194.56,194.52,0.67]
[1761422015553,38.52352759,194.56,194.52,5.81072831]
[1761422017463,3.00352759,194.55,194.52,5.14072831]
[1761422017958,3.00352759,194.55,194.52,5.81072831]
[1761422018567,2.40352759,194.55,194.52,5.81072831]
[1761422021056,3.00352759,194.55,194.52,5.81072831]
[1761422021952,2.40352759,194.55,194.52,5.81072831]
[1761422022870,11.47647521,194.55,194.5,5.81138817]
[1761422023066,0.6,194.54,194.5,5.81138817]
[1761422023254,35.52,194.53,194.51,0.67]
[1761422024674,35.52,194.53,194.51,5.81105248]
[1761422028560,31.27364647,194.57,194.52,0.67]
[1761422028875,13.2800028,194.55,194.5,0.67]
[1761422029253,13.8800028,194.55,194.5,0.67]
[1761422030459,19.0201286,194.55,194.5,0.67]
[1761422031380,19.0201286,194.55,194.5,5.81137875]
[1761422031568,0.6,194.54,194.49,5.81165252]
[1761422031767,35.54,194.53,194.49,5.81165252]
[1761422031971,35.54,194.53,194.5,0.67]
[1761422032876,36.14,194.53,194.5,0.67]
[1761422033282,36.14,194.53,194.49,5.14165252]
[1761422033468,0.6,194.52,194.49,5.14165252]
[1761422033658,0.6,194.52,194.49,5.81165252]
[1761422033854,35.54,194.53,194.49,5.81165252]
[1761422034057,36.14,194.53,194.49,5.81165252]
[1761422034478,36.14,194.53,194.5,0.67]
[1761422035173,13.2800028,194.52,194.48,23.65901809]
[1761422035374,13.8800028,194.52,194.48,11.29774525]
[1761422035581,11.47647521,194.52,194.48,11.29774525]
[1761422037472,16.6174253,194.52,194.48,11.29774525]
[1761422037680,0.6,194.51,194.48,10.62774525]
[1761422037857,35.54,194.5,194.48,10.62774525]
[1761422038773,10.87647521,194.49,194.46,0.67]
[1761422040389,11.47647521,194.49,194.44,5.14297469]
[1761422040567,10.87647521,194.49,194.45,0.7]
[1761422041382,11.47647521,194.49,194.45,0.7]
[1761422041788,48.22749306,194.5,194.45,5.84252111]
[1761422041789,40.68246298,194.5,194.45,5.84252111]
[1761422042091,35.54,194.5,194.48,2.40352759]
[1761422042391,35.54,194.5,194.46,0.7]
[1761422044095,36.14,194.5,194.46,0.7]
[1761422044384,35.54,194.5,194.46,0.7]
[1761422045789,35.54,194.5,194.46,5.84241395]
[1761422046367,35.54,194.5,194.47,0.7]
[1761422047270,35.54,194.5,194.47,5.84218111]
[1761422047475,35.54,194.5,194.47,8.2457087]
[1761422048787,35.54,194.5,194.48,0.7]
[1761422053097,16.0173437,194.52,194.48,0.7]
[1761422053395,35.54,194.51,194.48,0.7]
[1761422054282,35.54,194.5,194.48,0.7]
[1761422057001,35.54,194.5,194.48,5.84188785]
[1761422057382,35.54,194.5,194.49,0.7]
[1761422059199,5.74061405,194.53,194.49,0.7]
[1761422059401,35.54,194.51,194.49,0.7]
[1761422061703,35.54,194.51,194.49,5.84162163]
[1761422062097,35.54,194.51,194.5,0.72]
[1761422066399,34.25471904,194.51,194.5,0.72]
[1761422068285,5.14061405,194.53,194.5,0.72]
[1761422068286,7.54541544,194.55,194.5,5.86133402]
[1761422068489,35.54,194.54,194.5,8.26486161]
[1761422068711,37.07946474,194.54,194.49,16.15011444]
[1761422068916,2.13946474,194.53,194.49,16.15011444]
[1761422069081,2.13946474,194.53,194.49,0.72]
[1761422069487,2.13946474,194.52,194.47,0.72]
[1761422069695,37.07946474,194.51,194.47,0.72]
[1761422069895,37.67946474,194.51,194.47,5.86209476]
[1761422072295,36.14,194.51,194.47,5.86209476]
[1761422072709,41.2811568,194.51,194.47,0.72]
[1761422072888,42.82062154,194.51,194.47,0.72]
[1761422074703,0.6,194.5,194.47,0.72]
[1761422075118,0.6,194.5,194.46,5.86237019]
[1761422079621,5.74142165,194.5,194.46,0.72]
[1761422080605,7.28088639,194.5,194.46,0.72]
[1761422081625,35.54,194.49,194.46,5.86242368]
[1761422081807,35.54,194.49,194.47,0.72]
[1761422090541,35.54,194.49,194.47,5.8621763]
[1761422096041,35.54,194.49,194.45,5.1427102]
[1761422096242,35.54,194.49,194.46,0.68]
[1761422098841,35.54,194.49,194.47,5.14218131]
[1761422099755,35.54,194.49,194.47,5.82218131]
[1761422100239,15.43487767,194.53,194.48,2.25946474]
[1761422100539,1.53946474,194.5,194.45,5.86248463]
[1761422100740,36.14,194.49,194.45,5.86248463]
[1761422101225,36.14,194.49,194.45,5.14248463]
[1761422101427,35.54,194.49,194.46,0.72]
[1761422102050,35.54,194.49,194.47,5.14218131]
[1761422102347,0.6,194.52,194.47,5.14218131]
[1761422102645,35.54,194.51,194.48,0.72]
[1761422104126,35.54,194.5,194.48,5.86188552]
[1761422104328,0.6,194.52,194.48,5.86188552]
[1761422104527,35.54,194.5,194.48,5.86188552]
[1761422104943,0.6,194.52,194.48,5.86188552]
[1761422105256,35.54,194.51,194.49,0.72]
[1761422106642,35.54,194.51,194.48,0.72]
[1761422108654,35.54,194.51,194.48,5.86188612]
[1761422109052,35.54,194.51,194.49,0.72]
[1761422113163,35.73674521,194.54,194.49,5.86153364]
[1761422113454,35.54,194.53,194.5,0.72]
[1761422115460,36.14,194.53,194.5,0.72]
[1761422115651,35.54,194.53,194.5,0.72]
[1761422128278,40.68059682,194.53,194.5,0.72]
[1761422130551,42.82006156,194.53,194.48,0.72]
[1761422130776,41.28059682,194.53,194.49,0.72]
[1761422130957,43.68609952,194.53,194.49,0.72]
[1761422132375,43.08609952,194.53,194.49,0.72]
[1761422133380,40.68059682,194.53,194.49,0.72]
[1761422133880,41.28059682,194.53,194.49,0.72]
[1761422136584,40.68059682,194.53,194.49,0.72]
[1761422142386,35.54,194.53,194.49,5.86157469]
[1761422142784,28.02037788,194.54,194.5,0.72]
[1761422142966,35.54,194.53,194.5,0.72]
[1761422145969,3.0055027,194.52,194.48,0.72]
[1761422146188,35.54,194.51,194.48,0.72]
[1761422151293,35.54,194.51,194.46,2.4055027]
[1761422151294,3.0055027,194.5,194.46,5.80237797]
[1761422151496,35.54,194.49,194.47,0.66]